Cogmind - Beta 15 @@@ ROGUE MODE // 2025.08.31 @ 11:30:25 Player: the Result: Destroyed by Executioner with Helical Railgun Performance ------------- Evolutions (9) 4500 Regions Visited (25) 5000 Robots Destroyed (423) 2115 Value Destroyed (18339) 18339 Prototype IDs (101) 2020 Alien Tech Used (4) 800 Bonus (5902) 5902 TOTAL SCORE: 38676 Bonus ------- High Alert Combat Kills 1001 Follower Combat Kills 703 Awakened Behemoth Slayer 1000 Aligned with FarCom 300 Met Imprinter 300 Met Zhirov 300 Found Hidden Lab 3000 Friendly Fire -702 Cogmind --------- Core Integrity 0/1600 Matter 274/300 Energy 814/850 System Corruption 25% Temperature Cool (44) Movement Immobile (Siege) Location -1/Command Parts ------- > --- POWER (3) -------- Quantum Reactor Reinforced Quantum Reactor Reinforced Quantum Reactor > --- PROPULSION (8) --- Armored Heavy Treads Armored Heavy Treads Armored Heavy Treads Armored Heavy Treads > --- UTILITY (11) ----- Advanced Heat Sink Advanced Cooling System Advanced Coolant Injector Advanced Coolant Injector Advanced Visual Processing Unit Quantum Capacitor Improved Core Shielding Improved Core Shielding Heavy Reflective Plating > --- WEAPON (4) ------- Enhanced Nova Cannon CR-A16's Behemoth Slayer > --- INVENTORY (5) ---- Micro Antimatter Reactor Micro Antimatter Reactor Enhanced Nova Cannon Enhanced Nova Cannon Peak State ------------ > --- POWER ------------ Quantum Reactor Reinforced Quantum Reactor Reinforced Quantum Reactor > --- PROPULSION ------- Armored Heavy Treads Armored Heavy Treads Armored Heavy Treads Armored Heavy Treads > --- UTILITY ---------- Advanced Heat Sink Advanced Cooling System Advanced Coolant Injector Advanced Coolant Injector Advanced Visual Processing Unit Quantum Capacitor Improved Core Shielding Improved Core Shielding Heavy Reflective Plating > --- WEAPON ----------- Enhanced Nova Cannon Heavy Shock Bomb Launcher CR-A16's Behemoth Slayer > --- INVENTORY -------- Micro Antimatter Reactor Micro Antimatter Reactor Enhanced Nova Cannon Enhanced Nova Cannon [Rating: 180] Favorites ----------- Power F-cell Engine Engine F-cell Engine Power Core Enhanced Fission Core Reactor Cold Fusion Reactor Propulsion Light Armored Exoskeleton Treads Armored Heavy Treads Leg Light Armored Exoskeleton Hover Unit Combat Gravmag System Utility High-capacity Storage Unit Device Advanced Cooling System Storage High-capacity Storage Unit Processor Experimental Core Analyzer Hackware Advanced Hacking Suite Protection Heavy Regenerative Plating Weapon Spread Laser Energy Gun Spread Laser Energy Cannon Plasma Cannon Ballistic Gun XL Autogun Subcomponent Ballistic Cannon Linear Accelerator Launcher Missile Launcher Special Weapon Remote Datajack Impact Weapon Power Maul Slashing Weapon Greatsword Piercing Weapon CR-A16's Behemoth Slayer Special Melee Weapon Datajack Build | -11 -10 -10 -10 -9 -8 -8 -7 -7 -7 -7 -6 -6 -6 -5 -5 -5 -5 -4 -4 -4 -4 -3 -2 -1 -1 ------- Run | Yrd Mat Min Exi Min Mat Sto Fac Low Low Zio Pro Fac Ext Fac Upp Upp Zhi Pro Fac Arm Lab Res Res Acc Com Slots Evolved 18 | . . . . . 4 . 2 . . . . 2 . 2 . . . . 2 . . 2 2 2 . Power 2 | . . . . . . . . . . . . . . . . . . . . . . . 1 1 . Propulsion 5 | . . . . . 2 . 1 . . . . 1 . . . . . . . . . 1 . . . Utility 9 | . . . . . 2 . 1 . . . . . . 1 . . . . 2 . . 1 1 1 . Weapon 2 | . . . . . . . . . . . . 1 . 1 . . . . . . . . . . . Parts Attached 261 | 7 17 6 2 1 35 23 19 3 . 5 4 9 4 21 2 1 7 2 16 10 5 6 10 12 34 Power 25 | 1 1 2 . . 4 4 . . . . . 1 . 1 . . 1 . 2 1 . . 1 . 6 Engine 9 | 1 1 2 . . 3 2 . . . . . . . . . . . . . . . . . . . Core 3 | . . . . . 1 1 . . . . . . . 1 . . . . . . . . . . . Reactor 13 | . . . . . . 1 . . . . . 1 . . . . 1 . 2 1 . . 1 . 6 Propulsion 62 | 2 3 4 . . 7 10 7 . . . 3 2 . 1 . . 2 . 2 1 . . 2 3 13 Treads 6 | . . . . . . . . . . . 1 . . . . . . . . . . . . 1 4 Leg 47 | 2 3 4 . . 7 10 7 . . . 2 2 . 1 . . 2 . 2 1 . . 2 2 . Wheel . | . . . . . . . . . . . . . . . . . . . . . . . . . . Hover 9 | . . . . . . . . . . . . . . . . . . . . . . . . . 9 Flight . | . . . . . . . . . . . . . . . . . . . . . . . . . . Utility 96 | 2 5 . 1 . 12 . 9 . . 5 . 3 2 7 1 1 3 2 6 5 3 5 6 6 12 Device 42 | 1 3 . . . 7 . 3 . . . . 1 1 4 1 . 1 1 1 4 1 3 1 1 8 Storage 6 | 1 2 . 1 . . . . . . . . . . 1 . . . . 1 . . . . . . Processor 10 | . . . . . 2 . 1 . . 4 . . . . . . . . . . . . 1 1 1 Hackware 20 | . . . . . 1 . 3 . . . . 2 . 1 . . . 1 3 1 1 1 3 3 . Protection 18 | . . . . . 2 . 2 . . 1 . . 1 1 . 1 2 . 1 . 1 1 1 1 3 Artifact . | . . . . . . . . . . . . . . . . . . . . . . . . . . Weapon 78 | 2 8 . 1 1 12 9 3 3 . . 1 3 2 12 1 . 1 . 6 3 2 1 1 3 3 Energy Gun 22 | . 3 . . . 5 5 . . . . . . 1 3 . . 1 . 1 1 1 . . 1 . Energy Cannon 22 | . . . . . . 2 2 2 . . . 2 1 7 . . . . . 1 1 . 1 1 2 Ballistic Gun 15 | 2 2 . . . 4 . . . . . . . . . 1 . . . 5 1 . . . . . Ballistic Cannon 1 | . . . . . . . . . . . . . . . . . . . . . . . . 1 . Launcher 9 | . 1 . . 1 1 2 . 1 . . . . . 1 . . . . . . . 1 . . 1 Special Weapon 3 | . 2 . . . . . . . . . . 1 . . . . . . . . . . . . . Impact Weapon 1 | . . . . . . . 1 . . . . . . . . . . . . . . . . . . Slashing Weapon 2 | . . . . . 2 . . . . . . . . . . . . . . . . . . . . Piercing Weapon 2 | . . . . . . . . . . . 1 . . 1 . . . . . . . . . . . Special Melee Weapon 1 | . . . 1 . . . . . . . . . . . . . . . . . . . . . . Unidentified Prototypes 45 | . 1 . . . 3 8 1 . . 3 . 1 . 2 . . 5 . 3 8 6 . . 4 . Corrupted Parts 1 | . . . . . . . . . . . . . . . . . . . . . . . . . 1 System Corruption 7 | . . . . . . . . . . . . . . . . . . . . . . . . . 7 Parts Lost 35 | . . . . . 8 6 . . . . 1 . . 4 . . . . 2 . . 3 3 2 6 Power 3 | . . . . . 2 . . . . . . . . . . . . . . . . . . . 1 Propulsion 13 | . . . . . 5 5 . . . . 1 . . . . . . . . . . . 1 . 1 Utility 12 | . . . . . . . . . . . . . . . . . . . 2 . . 3 2 2 3 Weapon 7 | . . . . . 1 1 . . . . . . . 4 . . . . . . . . . . 1 Highest Loss Streak 4 | . . . . . 3 4 . . . . 1 . . 2 . . . . 2 . . 1 1 1 3 To Critical Strikes 1 | . . . . . . . . . . . . . . . . . . . . . . . 1 . . Average Backups 14 | 1 11 15 15 16 16 16 16 16 16 14 13 12 12 12 14 15 15 16 16 15 15 16 13 4 2 Power 1 | . . . . . . 1 1 1 1 1 1 2 3 2 2 2 2 2 2 2 1 1 . 1 . Propulsion . | . . . . . . . . . 1 1 1 1 2 . . . . . 1 . . . . . . Utility 6 | . 2 4 4 3 5 7 9 7 7 6 6 4 3 5 7 7 7 8 6 8 9 10 8 1 . Weapon 6 | . 7 10 11 11 9 8 5 6 7 6 5 4 3 3 4 4 4 4 4 4 3 3 3 1 1 Tool/Special . | . . . . . . . . . . . . . . . . . . . . . . . . . . Unused Backups 39 | . 3 . . . 7 7 7 2 . 1 1 1 . 1 . . 1 . 1 2 1 2 . . 2 Power 3 | . . . . . . 1 . . . . . . . . . . . . . . 1 . . . 1 Propulsion . | . . . . . . . . . . . . . . . . . . . . . . . . . . Utility 16 | . 1 . . . 2 1 4 2 . 1 1 1 . 1 . . . . 1 . . 1 . . . Weapon 18 | . 2 . . . 5 5 2 . . . . . . . . . 1 . . 1 . 1 . . 1 Tool/Special 2 | . . . . . . . 1 . . . . . . . . . . . . 1 . . . . . Average Slot Usage (%) 80 | . 99 100 100 99 85 86 93 84 84 83 83 81 80 80 73 64 60 67 62 75 72 62 53 24 63 Engine 5 | . 14 14 14 13 8 8 . 7 7 3 7 6 5 . . . . . . . . . . . . Reactor 1 | . . . . . . . 6 . . 3 . . . 1 . . 2 5 4 5 5 4 6 . 7 Leg 21 | . 27 28 28 27 28 31 33 23 23 23 22 22 20 16 17 17 19 23 13 10 10 9 9 . . Device 8 | . 14 14 14 14 9 . 5 15 15 10 6 4 4 6 11 9 5 6 5 11 11 9 11 . 11 Storage 7 | . 14 14 14 14 9 9 7 7 7 7 7 6 6 5 7 5 5 6 5 5 5 4 3 . . Processor 10 | . . . . . 11 18 15 15 15 18 23 15 13 11 11 11 11 11 10 10 9 3 . 6 3 Hackware 4 | . . . . . . 9 3 . . . . 5 6 6 . . . 2 9 10 12 12 11 13 6 Protection 1 | . . . . . . . 5 . . 1 . . 1 1 3 6 8 2 4 1 . 4 4 . 4 Energy Gun 5 | . 15 28 14 26 12 . 1 . . . . . 1 9 . . . . . . . . 2 . . Energy Cannon 5 | . . . . . . . 7 14 14 14 13 16 13 10 9 . . . . 3 4 2 . . 1 Ballistic Gun 2 | . 6 . . . 2 2 . . . . . . . . 2 4 . 4 6 16 11 7 . . . Peak Build Rating 180 | 7 12 18 22 22 37 42 62 59 59 78 85 94 95 109 116 115 122 128 141 136 143 150 178 82 180 Average Rating 72 | 5 9 13 18 21 31 36 56 58 59 66 77 86 88 99 108 110 85 124 135 131 134 144 151 40 129 On Entrance 71 | . 7 12 18 22 22 36 42 58 59 59 77 83 86 87 99 113 111 122 128 123 134 142 134 37 40 Naked Turns . | . . . . . . . . . . . . . . . . . . . . . . . . . . Heaviest Build 138 | 13 32 36 56 56 60 60 75 70 70 71 70 76 74 102 102 83 89 89 92 92 95 108 138 14 124 Greatest Support 240 | 20 20 25 25 25 57 46 85 78 78 78 85 105 90 90 90 90 120 120 120 100 100 100 170 60 240 Greatest Overweight (x) 18 | . 1 1 2 2 2 18 1 . . . 1 . . 1 1 . . . . 1 . 1 1 . 1 Average Overweight (x) . | . . 1 1 2 . 1 . . . . . . . . . . . . . . . . . . . Largest Inventory Capacity 20 | 8 15 15 20 20 20 20 20 20 20 20 20 20 20 20 20 20 20 20 20 20 20 20 20 5 5 Average Capacity 18 | 7 12 15 17 20 20 20 20 20 20 20 20 20 20 20 20 20 20 20 20 20 20 20 19 5 5 Most Carried 20 | 5 15 15 19 20 20 20 20 20 20 20 20 20 20 20 20 20 20 20 20 20 20 20 20 5 5 Average Carried 18 | 1 11 15 16 18 19 19 19 19 20 19 19 19 19 19 19 19 19 19 19 19 19 19 15 4 3 Final Capacity 20 | 8 15 15 20 20 20 20 20 20 20 20 20 20 20 20 20 20 20 20 20 20 20 20 5 5 5 Final Carried 20 | 4 15 15 19 18 20 20 19 20 20 20 19 20 20 20 20 19 20 20 20 19 20 20 5 5 4 Class Distribution -------------------- 26% | Mutant 24% | Skirmisher 18% | Scavenger-Mutant 14% | Hacker-Skirmisher 5% | Gunner 3% | Hacker-Gunner 3% | Hacker-Mutant Dominant Class ---------------- Mutant | -10/Materials Mutant | -10/Mines Scavenger-Mutant | -10/Exiles Mutant | -9/Mines Mutant | -8/Materials Scavenger-Mutant | -8/Storage Mutant | -7/Factory Skirmisher | -7/Lower Caves Skirmisher | -7/Lower Caves Skirmisher | -7/Zion Skirmisher | -6/Proximity Caves Skirmisher | -6/Factory Skirmisher | -6/Extension Hacker-Skirmisher | -5/Factory Gunner | -5/Upper Caves Gunner | -5/Upper Caves Mutant | -5/Zhirov Gunner | -4/Proximity Caves Hacker-Skirmisher | -4/Factory Hacker-Skirmisher | -4/Armory Hacker-Gunner | -4/Lab Hacker-Skirmisher | -3/Research Hacker-Skirmisher | -2/Research Hacker-Mutant | -1/Access Scavenger-Mutant | -1/Command Resources | -11 -10 -10 -10 -9 -8 -8 -7 -7 -7 -7 -6 -6 -6 -5 -5 -5 -5 -4 -4 -4 -4 -3 -2 -1 -1 ----------- Run | Yrd Mat Min Exi Min Mat Sto Fac Low Low Zio Pro Fac Ext Fac Upp Upp Zhi Pro Fac Arm Lab Res Res Acc Com Matter Collected 11032 | 318 352 112 20 140 753 764 527 88 80 135 367 222 293 892 146 599 110 341 1931 342 340 767 531 153 709 Remotely 570 | . . . . . . . . . . . . . . . . . . . 470 100 . . . . . Salvage Created 22451 | 199 310 118 . 13 1868 1557 1037 75 115 . 619 259 825 2798 92 580 409 215 2371 543 . 3433 2194 400 2421 Parts 1055 | 18 18 7 . 6 107 91 52 4 7 . 38 16 24 138 2 30 4 17 101 34 . 142 75 24 100 Haulers Intercepted 13 | . 2 . . . 6 4 . . . . . . . . . . . . . . . 1 . . . Recyclers Shooed 9 | 1 1 . . . 2 1 2 . . . . . . . . . . . 1 . . . . . 1 Parts Field Recycled . | . . . . . . . . . . . . . . . . . . . . . . . . . . Retrieved Matter . | . . . . . . . . . . . . . . . . . . . . . . . . . . Parts Self-Destructed 95 | . . . . . . . . . 4 . 40 . . . 2 30 3 16 . . . . . . . Prevented 7 | . . . . . . . . 4 3 . . . . . . . . . . . . . . . . Kills | -11 -10 -10 -10 -9 -8 -8 -7 -7 -7 -7 -6 -6 -6 -5 -5 -5 -5 -4 -4 -4 -4 -3 -2 -1 -1 ------- Run | Yrd Mat Min Exi Min Mat Sto Fac Low Low Zio Pro Fac Ext Fac Upp Upp Zhi Pro Fac Arm Lab Res Res Acc Com Combat Hostiles Destroyed 295 | . 5 3 . 6 37 20 16 1 2 . 17 5 7 40 1 11 . 10 19 9 . 37 26 2 21 Melee 16 | . . . . . 2 8 3 . . . 1 . . . . . . . . . . . . . 2 Guns 133 | . 2 3 . 1 26 11 . . . . . . 1 8 . 11 . 10 19 9 . 10 22 . . Cannons 77 | . . . . . . . 12 . . . 6 5 5 21 1 . . . . . . 18 1 1 7 AOE 39 | . 3 . . 5 9 1 . . 2 . 10 . . 4 . . . . . . . . 1 . 4 Classes Destroyed 22 | 3 3 . . 1 5 2 1 . . . 4 . . . . . . 1 . . . . 1 . 1 Worker 20 | 1 . . . . 3 2 1 . . . . 1 . 4 . . . . 2 . . . 1 . 5 Builder 26 | . . . . . 2 6 2 . . . . . . 9 . . . . 2 . . 1 3 1 . Tunneler 5 | 5 . . . . . . . . . . . . . . . . . . . . . . . . . Hauler 13 | . 2 . . . 6 4 . . . . . . . . . . . . . . . 1 . . . Recycler 31 | 1 2 1 . . 4 3 2 . . . . . 3 1 . . . . 5 . . 2 1 1 5 Mechanic 2 | . . . . . . 1 1 . . . . . . . . . . . . . . . . . . Operator 10 | . . . . . 1 1 1 . . . . . 3 2 . . . . . . . 1 1 . . Drone 2 | . . . . . . . . . . . . . . . . . . 2 . . . . . . . Watcher 20 | . . . . . 4 1 1 . . . . . . 1 . . . . 4 . . 6 1 . 2 Swarmer 49 | . 4 1 . 5 7 3 . . . . 6 . . 5 . 4 . 8 . 1 . . . . 5 Grunt 108 | . 1 2 . . 17 9 8 . 2 . 4 . 6 18 . 2 . . 8 2 . 19 5 . 5 Brawler 3 | . . . . . . . . . . . 1 . . . . . . . . . . 1 1 . . Duelist 5 | . . . . . . 1 . . . . 3 . . . . 1 . . . . . . . . . Protector 1 | . . . . . . . . . . . 1 . . . . . . . . . . . . . . Sentry 40 | . . . . . 11 7 2 1 . . . 1 . 4 1 . . . 4 2 . 5 2 . . Demolisher 1 | . . . . 1 . . . . . . . . . . . . . . . . . . . . . Specialist 2 | . . . . . 2 . . . . . . . . . . . . . . . . . . . . Hunter 18 | . . . . . . . . . . . 2 . . 4 . 2 . . 2 . . 1 5 . 2 Programmer 58 | . . . . . . . 6 . . . . 4 . 8 . 2 . . 5 4 . 10 12 1 6 Heavy 1 | . . . . . . . . . . . . . . . . . . . . . . . 1 . . Behemoth 7 | . . . . . . . . . . . 1 . 1 1 . . . . . . . 1 . 1 2 Alpha 7 1 | . . . . . . . . . . . . . . . . . . . . . . . . . 1 Decomposer 1 | . . . . . . . . . . . . . . . 1 . . . . . . . . . . Best Kill Streak 16 | 5 4 2 . 4 5 7 3 1 2 . 5 2 4 16 1 4 . 4 6 3 . 12 6 3 8 Combat Bots Only 12 | . 3 2 . 4 4 6 3 1 2 . 5 2 4 5 1 4 . 4 5 3 . 12 6 2 8 Max Kills in Single Turn 3 | 1 3 1 . 2 3 2 1 1 1 . 2 1 1 3 1 2 . 1 2 1 . 1 2 1 3 Gunslinging . | . . . . . . . . . . . . . . . . . . . . . . . . . . Exploded 3 | . 3 . . 2 2 1 . . 1 . 2 . . 3 . . . . . . . . 1 . 1 Melee 1 | . . . . . 1 1 1 . . . 1 . . . . . . . . . . . . . 1 Uniques/NPCs Destroyed 1 | . . . . . . 1 . . . . . . . . . . . . . . . . . . . 01-MTF (-8/Storage) Combat | -11 -10 -10 -10 -9 -8 -8 -7 -7 -7 -7 -6 -6 -6 -5 -5 -5 -5 -4 -4 -4 -4 -3 -2 -1 -1 -------- Run | Yrd Mat Min Exi Min Mat Sto Fac Low Low Zio Pro Fac Ext Fac Upp Upp Zhi Pro Fac Arm Lab Res Res Acc Com Hostile Shots Fired 1770 | . 11 7 . 2 134 109 143 18 4 . 78 32 46 256 6 29 . 15 96 22 . 149 230 129 254 Missed 529 | . 3 . . . 28 25 58 11 2 . 17 8 15 78 4 8 . 4 33 6 . 43 57 56 73 Hits 1241 | . 8 7 . 2 106 84 85 7 2 . 61 24 31 178 2 21 . 11 63 16 . 106 173 73 181 Melee 4 | . . . . . . 4 . . . . . . . . . . . . . . . . . . . Projectile 1237 | . 8 7 . 2 106 80 85 7 2 . 61 24 31 178 2 21 . 11 63 16 . 106 173 73 181 AOE 1 | . . . . 1 . . . . . . . . . . . . . . . . . . . . . Critical Strikes 61 | . . . . . 3 1 4 . 1 . 2 2 3 8 1 2 . . 3 2 . 6 13 3 7 Actively Blocked 2 | . . . . . . . . . . . . . . . . . . . . . . . 2 . . Part Disruptions 6 | . . . . . . . . . . . . . . . . . . . . . . 1 4 . 1 Damage Taken 24472 | . 76 83 . 75 1629 1339 1034 54 42 . 1255 278 707 3358 49 333 . 165 1380 320 . 2374 4131 1834 3956 Core 3288 | . 17 16 . . 353 113 119 22 . . 191 28 20 262 . 34 . 17 40 . . 80 375 1261 340 Absorbed by Shields . | . . . . . . . . . . . . . . . . . . . . . . . . . . Reduced by Siege Mode 170 | . . . . . . . . . . . . . . . . . . . . . . . . . 170 Redirected to Shielding 109 | . . . . . . . . . . . . . . . . 43 . . . . . . . . 66 Ignored by Resistances 10 | . . . . . 10 . . . . . . . . . . . . . . . . . . . . Regen/Repaired (Parts) 3728 | . . . . . . 314 . . . . . 1120 . 498 . . . . . . . 662 785 . 349 Core Remaining (%) 74 | 100 . . . 86 . 15 . . . . 52 . 94 . . . . 68 . . 91 93 67 . . Volleys Fired 1236 | 26 38 10 . 4 122 48 52 43 48 . 98 12 28 145 3 62 . 24 85 52 35 112 97 5 87 Largest 4 | 2 2 2 . 2 2 2 2 1 2 . 2 3 3 4 4 1 . 1 4 4 1 4 1 1 1 Hottest 345 | 40 130 130 . 130 130 56 160 65 145 . 145 260 260 345 345 90 . 60 90 125 105 250 250 54 120 Shots Fired 1937 | 52 58 20 . 7 219 95 102 43 54 . 113 36 64 327 13 63 . 26 121 114 35 186 96 5 88 Gun 950 | 52 39 20 . 2 196 94 8 . . . . . 12 103 . 29 . 26 116 83 3 105 62 . . Cannon 879 | . . . . . . . 94 37 50 . 94 36 52 211 13 34 . . 5 31 32 81 32 5 72 Launcher 74 | . 1 . . 5 7 1 . 6 4 . 19 . . 13 . . . . . . . . 2 . 16 Special 34 | . 18 . . . 16 . . . . . . . . . . . . . . . . . . . . Kinetic 557 | 52 25 . . . 26 94 . . . . . . . . . 29 . 26 116 83 . 101 . 5 . Thermal 1303 | . 32 20 . 2 186 . 102 37 50 . 94 36 64 314 13 34 . . 5 31 32 85 94 . 72 Explosive 35 | . 1 . . 5 7 1 . . . . 19 . . . . . . . . . . . 2 . . Electromagnetic 42 | . . . . . . . . 6 4 . . . . 13 . . . . . . 3 . . . 16 Robot Hit Streak 20 | 6 10 14 . 5 11 13 7 8 11 . 4 4 5 10 7 8 . 4 10 14 . 20 11 5 7 Robot Miss Streak 16 | 5 10 6 . 2 11 3 5 . 1 . 3 2 8 5 1 5 . 10 7 2 . 5 16 1 3 Penetration Max 1 | . . . . . 1 1 . . . . . . . . . . . . . . . . . . . Secondary Targets 15 | . . 1 . . 3 4 . . . . . . . . . . . . 1 3 . 3 . . . Max Gunslinging Chain 1 | . . 1 . . 1 1 . . . . . . . . . . . . 1 1 . 1 . . . Capacitor 161 | . . . . . . . . . . . . . . . . . . . . . . 2 87 . 72 Shots Hit Robots 1116 | 28 29 17 7 1 177 96 72 4 7 . 25 22 47 155 9 26 6 12 91 54 . 93 71 7 60 Core Hits 897 | 13 20 21 . 11 230 47 27 1 4 . 36 11 26 87 3 21 2 10 86 23 . 71 108 2 37 Critical Kills 15 | . . . . . . 1 1 . . . . . . 2 . . . . . . . 9 . . 2 Critical Parts Destroyed 4 | 1 . . . . . 2 1 . . . . . . . . . . . . . . . . . . Critical Strikes 37 | 1 . . . . 2 5 3 . . . . . 1 5 . . 1 . . . . 9 . 2 8 Burn 3 | . . . . . . . . . . . . . . 3 . . . . . . . . . . . Meltdown 14 | . . . . . . . 1 . . . . . . 2 . . . . . . . 9 . . 2 Destroy 4 | 1 . . . . . 3 . . . . . . . . . . . . . . . . . . . Blast 2 | . . . . . . . . . . . . . . . . . . . . . . . . 2 . Smash 1 | . . . . . . . 1 . . . . . . . . . . . . . . . . . . Sever 5 | . . . . . 2 2 1 . . . . . . . . . . . . . . . . . . Impale 8 | . . . . . . . . . . . . . 1 . . . 1 . . . . . . . 6 Melee Attacks 262 | . . . 7 . 14 88 43 . . . 7 28 7 1 . . 6 . . . . 1 10 19 31 Impact 14 | . . . . . . . 14 . . . . . . . . . . . . . . . . . . Slashing 131 | . . . . . 14 88 29 . . . . . . . . . . . . . . . . . . Piercing 110 | . . . . . . . . . . . 7 28 7 1 . . 6 . . . . 1 10 19 31 Sneak Attacks 40 | . . . 7 . 3 17 4 . . . 1 1 2 . . . . . . . . . . 1 4 Combat Hostiles . | . . . . . . . . . . . . . . . . . . . . . . . . . . Follow-up Attacks . | . . . . . . . . . . . . . . . . . . . . . . . . . . Damage Inflicted 45922 | 231 566 230 . 259 3935 4186 2399 123 294 . 1822 808 1324 5833 280 1411 402 451 4766 1157 . 4952 6308 334 3851 Guns 21477 | 231 410 230 . 35 2406 1374 84 . . . . . 167 1602 . 1411 . 451 4766 1157 . 1765 5388 . . Cannons 12847 | . . . . . . . 1437 . 106 . 359 708 1004 3006 280 . . . . . . 3187 491 229 2040 Explosions 5863 | . 156 . . 224 851 180 . 123 188 . 1317 . . 1225 . . . . . . . . 429 . 1170 Melee 5711 | . . . . . 654 2632 878 . . . 146 100 153 . . . 402 . . . . . . 105 641 Ramming . | . . . . . . . . . . . . . . . . . . . . . . . . . . Kinetic 11576 | 231 256 . . . 356 1374 . . . . . . . . . 1411 . 451 4766 1157 . 1345 . 229 . Thermal 23339 | . 154 230 . 35 2307 . 1521 . 106 . 359 708 1171 4678 280 . . . . . . 3607 5879 . 2304 Explosive 2924 | . 156 . . 224 618 180 . . . . 1317 . . . . . . . . . . . 429 . . Electromagnetic 2372 | . . . . . . . . 123 188 . . . . 1155 . . . . . . . . . . 906 Impact 274 | . . . . . . . 274 . . . . . . . . . . . . . . . . . . Slashing 3890 | . . . . . 654 2632 604 . . . . . . . . . . . . . . . . . . Piercing 1547 | . . . . . . . . . . . 146 100 153 . . . 402 . . . . . . 105 641 Highest Corruption 25 | . . . . . . . 3 3 3 3 . 4 4 4 4 5 5 5 . 3 3 10 15 9 25 Average Corruption 3 | . . . . . . . 1 3 3 3 . 2 3 2 4 4 5 5 . 2 3 5 4 4 15 Corruption Purged 4 | . . . . . . . . . . . . . 4 . . . . . . . . . . . . Corruption Blocked . | . . . . . . . . . . . . . . . . . . . . . . . . . . Effects 296 | . . . . . . . 24 17 11 . . 22 25 21 18 23 5 17 . 8 20 17 23 10 35 Message Errors 55 | . . . . . . . 5 3 1 . . 5 5 3 4 6 2 5 . 3 3 2 2 1 5 Matter Fused 79 | . . . . . . . 9 2 5 . . 9 9 2 6 4 1 4 . 1 8 4 4 3 8 Heat Flow Errors 36 | . . . . . . . 3 2 . . . 4 3 2 2 4 1 3 . . 4 1 3 1 3 Energy Discharges 29 | . . . . . . . 1 2 1 . . 2 1 5 . 4 . 1 . 2 . 2 2 . 6 Parts Rejected 3 | . . . . . . . 1 . . . . . . 1 . . . . . . . . . 1 . Parts Fused 6 | . . . . . . . 2 . . . . . 1 . 1 . . . . . 1 . 1 . . Data Loss (minor) 37 | . . . . . . . 2 4 2 . . 1 4 1 3 2 . 2 . . 2 4 2 4 4 Data Loss (major) 16 | . . . . . . . 1 1 . . . 1 1 3 1 . . . . . 1 2 3 . 2 Misfires 13 | . . . . . . . . 1 . . . . . 3 1 1 . 2 . 1 . . 1 . 3 Alerts 13 | . . . . . . . . 1 2 . . . 1 1 . 2 1 . . . 1 1 2 . 1 Misdirections 3 | . . . . . . . . . . . . . . . . . . . . . . . 2 . 1 Weapon Failures 6 | . . . . . . . . 1 . . . . . . . . . . . 1 . 1 1 . 2 Overload Shots . | . . . . . . . . . . . . . . . . . . . . . . . . . . Overflow Damage 1613 | . . . . 10 125 162 293 . . . 14 40 97 85 . . 351 . . . . 49 4 20 363 Projectiles 400 | . . . . . . . 63 . . . 14 14 29 70 . . . . . . . 49 1 12 148 Explosions 159 | . . . . 10 78 52 . . . . . . . 15 . . . . . . . . 3 . 1 Melee 1054 | . . . . . 47 110 230 . . . . 26 68 . . . 351 . . . . . . 8 214 Knockbacks 2 | . . . . . . . 2 . . . . . . . . . . . . . . . . . . Impact 2 | . . . . . . . 2 . . . . . . . . . . . . . . . . . . Kinetic . | . . . . . . . . . . . . . . . . . . . . . . . . . . Secondary . | . . . . . . . . . . . . . . . . . . . . . . . . . . Self-Inflicted Damage 129 | . . . . 18 17 . . . 8 . 34 . . 48 . . . . . . . . . . 4 Shots 8 | . . . . 1 2 . . . 1 . 1 . . 2 . . . . . . . . . . 1 Rammed . | . . . . . . . . . . . . . . . . . . . . . . . . . . Targets Rammed . | . . . . . . . . . . . . . . . . . . . . . . . . . . Kicked . | . . . . . . . . . . . . . . . . . . . . . . . . . . Crushed . | . . . . . . . . . . . . . . . . . . . . . . . . . . Highest Temperature 606 | . 138 188 . 54 360 96 400 115 . . 276 492 345 454 452 221 57 208 332 313 202 177 606 182 355 Average Temperature 104 | . 34 77 . 17 86 42 99 54 . . 63 154 116 145 183 92 31 41 82 68 43 48 187 116 134 Received Heat Transfer 4479 | . 12 27 . . 756 522 384 18 36 . 231 30 186 1025 27 9 . . 230 51 . 386 198 153 198 Effects 27 | . . . . . . . 2 . . . 1 . . 5 . . . . . . . . 14 . 5 Shutdowns 5 | . . . . . . . . . . . . . . 1 . . . . . . . . 4 . . Energy Bleed 4 | . . . . . . . 2 . . . 1 . . . . . . . . . . . . . 1 Interference 8 | . . . . . . . . . . . . . . 1 . . . . . . . . 4 . 3 Matter Decay 3 | . . . . . . . . . . . . . . 1 . . . . . . . . 1 . 1 Short Circuit 2 | . . . . . . . . . . . . . . 1 . . . . . . . . 1 . . Damage (minor) 3 | . . . . . . . . . . . . . . 1 . . . . . . . . 2 . . Damage (major) 2 | . . . . . . . . . . . . . . . . . . . . . . . 2 . . Siege Activations 4 | . . . . . . . . . . . . . . . . . . . . . . . . . 4 Total Turns 36 | . . . . . . . . . . . . . . . . . . . . . . . . . 36 Longest Duration 18 | . . . . . . . . . . . . . . . . . . . . . . . . . 18 Martial Activations . | . . . . . . . . . . . . . . . . . . . . . . . . . . Shielding Activations . | . . . . . . . . . . . . . . . . . . . . . . . . . . Robots Disrupted . | . . . . . . . . . . . . . . . . . . . . . . . . . . Combat Hostiles . | . . . . . . . . . . . . . . . . . . . . . . . . . . Robots Corrupted 8 | . . . . . . . 1 1 . . . . . 3 . . . . . . . . . . 3 Combat Hostiles 7 | . . . . . . . . 1 . . . . . 3 . . . . . . . . . . 3 Parts Fried 27 | . . . . . . . . 1 . . . . . 15 . . . . . . . . . . 11 Impact Corruptions 3 | . . . . . . . 3 . . . . . . . . . . . . . . . . . . Robots Melted 20 | . . . . . . . 1 . . . . . . 5 . . . . . . . 9 2 . 3 Combat Hostiles 17 | . . . . . . . 1 . . . . . . 3 . . . . . . . 8 2 . 3 Parts Melted 136 | . . . . . 1 . 11 . . . . 4 5 28 1 . . . . . . 26 51 . 9 Heat Transferred 29206 | . 190 295 . 50 2730 . 2835 . 174 . 648 974 1850 7073 333 . . . . . . 2794 7545 . 1715 Parts Sabotaged . | . . . . . . . . . . . . . . . . . . . . . . . . . . Parts Stolen . | . . . . . . . . . . . . . . . . . . . . . . . . . . Parts Stripped . | . . . . . . . . . . . . . . . . . . . . . . . . . . Power Chain Reactions 4 | . . . . . . . . . 1 . . . . 1 . . . . . . . . . . 2 Alert | -11 -10 -10 -10 -9 -8 -8 -7 -7 -7 -7 -6 -6 -6 -5 -5 -5 -5 -4 -4 -4 -4 -3 -2 -1 -1 ------- Run | Yrd Mat Min Exi Min Mat Sto Fac Low Low Zio Pro Fac Ext Fac Upp Upp Zhi Pro Fac Arm Lab Res Res Acc Com Maximum Alert Level 3 | . . . . . 2 2 1 . . . . . . 3 . . . . 2 1 . 2 2 1 2 Low Security (%) 63 | 100 100 100 . 100 58 5 81 . . . . 100 100 65 . . . . . . . 56 62 76 61 Level 1 23 | . . . . . 21 49 18 . . . . . . 3 . . . . 86 100 . 31 28 23 14 Level 2 12 | . . . . . 19 45 . . . . . . . 18 . . . . 12 . . 12 8 . 24 Level 3 1 | . . . . . . . . . . . . . . 12 . . . . . . . . . . . Level 4 . | . . . . . . . . . . . . . . . . . . . . . . . . . . Level 5 . | . . . . . . . . . . . . . . . . . . . . . . . . . . High Security . | . . . . . . . . . . . . . . . . . . . . . . . . . . Max Security . | . . . . . . . . . . . . . . . . . . . . . . . . . . Peak Influence 925 | 10 87 50 . 112 695 625 271 . . . . 60 185 925 . . . . 536 317 . 605 458 287 561 Initial 377 | . . . . . 13 291 271 . . . . 27 23 87 . . . . 377 251 . . 339 272 173 Average 171 | 1 7 4 . 27 221 396 94 . . . . 8 44 245 . . . . 329 266 . 163 201 137 264 Influence Increases 11771 | 35 194 105 . 152 1363 1087 754 20 55 . 550 263 704 1475 20 265 15 190 970 382 . 1058 863 450 801 Destroy 0b10 Robot/C 6380 | . 100 60 . 120 740 500 420 20 40 . 440 100 360 800 20 220 . 160 380 180 . 740 520 40 420 Destroy 0b10 Robot/NC 675 | 35 20 5 . . 100 95 40 . . . 5 5 35 85 . 5 15 10 65 . . 55 30 10 60 Destroy Leader 1416 | . 14 10 . 10 210 140 132 . . . 50 50 70 162 . 40 . 20 98 40 . 154 112 20 84 Allied During Kill 315 | . . . . . . 90 38 . . . 55 . 132 . . . . . . . . . . . . Successful Hack 459 | . 34 . . . 35 26 24 . . . . 67 34 44 . . . . 20 52 . 52 27 20 24 Disable Machine 585 | . . . . . 120 90 45 . . . . 15 30 90 . . . . 75 60 . . 15 . 45 Destroy Structure 846 | . 26 . . 22 128 56 25 . . . . 26 13 204 . . . . 32 50 . 42 84 30 108 Advance Influence 300 | . . . . . . . . . . . . . . . . . . . 300 . . . . . . Partial Spotted 45 | . . . . . . 15 . . . . . . . . . . . . . . . . . 15 15 Lose Combat Pursuer 750 | . . 30 . . 30 75 30 . 15 . . . 30 90 . . . . . . . 15 75 315 45 Influence Decreases 11219 | 35 194 105 . 116 707 1181 1126 246 55 . 506 259 573 743 648 412 151 66 581 664 231 453 1014 632 521 Entered New Map 2585 | . . . . . 23 401 327 84 . . . 17 25 92 338 55 136 . 47 262 231 . 266 182 99 Time Decay 7260 | 35 194 105 . 116 594 720 659 162 55 . 396 241 258 488 310 347 15 66 514 392 . 423 538 270 362 Lost Part 350 | . . . . . 80 60 . . . . 10 . . 40 . . . . 20 . . 30 30 20 60 Lost Ally 461 | . . . . . 10 . 140 . . . 100 1 140 10 . 10 . . . 10 . . 30 10 . Purge Threat 563 | . . . . . . . . . . . . . 150 113 . . . . . . . . 150 150 . Squads Dispatched 91 | . 1 . . . 6 2 17 . . . 1 7 3 17 . . . . 6 6 . 7 6 7 5 Investigation 32 | . 1 . . . 2 1 7 . . . . 3 2 6 . . . . 1 2 . 1 . 4 2 Extermination 33 | . . . . . . . 7 . . . . 4 . 4 . . . . 3 3 . 4 4 2 2 Reinforcement 15 | . . . . . 2 1 . . . . . . 1 4 . . . . 1 1 . 2 2 1 . Assault 3 | . . . . . . . . . . . 1 . . . . . . . 1 . . . . . 1 Garrison 8 | . . . . . 2 . 3 . . . . . . 3 . . . . . . . . . . . Intercept . | . . . . . . . . . . . . . . . . . . . . . . . . . . Searches Triggered . | . . . . . . . . . . . . . . . . . . . . . . . . . . Construction Impeded 5 | . . . . . . . . . . . . . . 2 . . . . 1 . . . 1 1 . Haulers Reinforced . | . . . . . . . . . . . . . . . . . . . . . . . . . . Active Scanning Responses . | . . . . . . . . . . . . . . . . . . . . . . . . . . Cargo Convoy Interrupts 1 | . . . . . . . . . . . . . . 1 . . . . . . . . . . . Stealth | -11 -10 -10 -10 -9 -8 -8 -7 -7 -7 -7 -6 -6 -6 -5 -5 -5 -5 -4 -4 -4 -4 -3 -2 -1 -1 --------- Run | Yrd Mat Min Exi Min Mat Sto Fac Low Low Zio Pro Fac Ext Fac Upp Upp Zhi Pro Fac Arm Lab Res Res Acc Com Distress Signals 29 | . 1 . . . 3 5 1 . . . . . 3 4 . . . 1 . 1 . 1 1 4 4 Communications Jammed 9 | . . . . . . . 1 . . . . 1 . . . . . . . . . 1 6 . . Distress Signals 8 | . . . . . . . . . . . . 1 . . . . . . . . . 1 6 . . Times Spotted 439 | . 8 4 . 3 48 36 32 1 4 . 18 8 15 57 1 11 . 10 27 13 . 37 41 29 36 Peak Tracking Total 12 | . 3 3 . 1 4 6 4 1 3 . 7 2 5 9 1 4 . 4 6 7 . 9 7 12 7 Tactical Retreats 30 | . . 1 . . 2 4 2 . 1 . . . 2 3 . . . . . . . 1 4 8 2 Traps | -11 -10 -10 -10 -9 -8 -8 -7 -7 -7 -7 -6 -6 -6 -5 -5 -5 -5 -4 -4 -4 -4 -3 -2 -1 -1 ------- Run | Yrd Mat Min Exi Min Mat Sto Fac Low Low Zio Pro Fac Ext Fac Upp Upp Zhi Pro Fac Arm Lab Res Res Acc Com Traps Triggered 24 | . 2 . . . 3 3 3 . . . . . 1 1 . . . . 1 . . . . 3 7 Indirectly 5 | . . . . . . . . . . . . . . . . . . . . . . . . . 5 Trap Hack Attempts . | . . . . . . . . . . . . . . . . . . . . . . . . . . Triggered . | . . . . . . . . . . . . . . . . . . . . . . . . . . Disarmed . | . . . . . . . . . . . . . . . . . . . . . . . . . . Reprogrammed . | . . . . . . . . . . . . . . . . . . . . . . . . . . Reused . | . . . . . . . . . . . . . . . . . . . . . . . . . . Traps Extracted . | . . . . . . . . . . . . . . . . . . . . . . . . . . Installed . | . . . . . . . . . . . . . . . . . . . . . . . . . . Triggered . | . . . . . . . . . . . . . . . . . . . . . . . . . . Objects Rigged 7 | . 2 . . . 5 . . . . . . . . . . . . . . . . . . . . Exploded 2 | . . . . . 2 . . . . . . . . . . . . . . . . . . . . Machines | -11 -10 -10 -10 -9 -8 -8 -7 -7 -7 -7 -6 -6 -6 -5 -5 -5 -5 -4 -4 -4 -4 -3 -2 -1 -1 ---------- Run | Yrd Mat Min Exi Min Mat Sto Fac Low Low Zio Pro Fac Ext Fac Upp Upp Zhi Pro Fac Arm Lab Res Res Acc Com Machines Disabled 47 | . . . . . 8 6 3 . . . 1 1 3 6 . 1 . . 5 4 5 . 1 . 3 Max in Single Turn 3 | . . . . . 3 1 1 . . . 1 1 1 1 . 1 . . 1 2 1 . 1 . 1 Garrison Access 3 | . . . . . 1 . . . . . . . . 1 . . . . . . . 1 . . . Energy Cycler 2 | . . . . . . . . . . . . . 2 . . . . . . . . . . . . Machines Repaired . | . . . . . . . . . . . . . . . . . . . . . . . . . . Machines Dismantled . | . . . . . . . . . . . . . . . . . . . . . . . . . . Machines Sabotaged . | . . . . . . . . . . . . . . . . . . . . . . . . . . Overloaded Fab Kills . | . . . . . . . . . . . . . . . . . . . . . . . . . . Hacking | -11 -10 -10 -10 -9 -8 -8 -7 -7 -7 -7 -6 -6 -6 -5 -5 -5 -5 -4 -4 -4 -4 -3 -2 -1 -1 --------- Run | Yrd Mat Min Exi Min Mat Sto Fac Low Low Zio Pro Fac Ext Fac Upp Upp Zhi Pro Fac Arm Lab Res Res Acc Com Machines Accessed 132 | . 6 . 2 . 13 12 16 2 . . . 13 5 16 2 1 5 . 6 7 . 9 5 9 3 Terminals 82 | . 6 . . . 10 10 8 . . . . 7 5 9 . . . . 2 5 . 7 3 7 3 Fabricators 17 | . . . . . . . 5 . . . . 1 . 5 . . . . 2 2 . . 1 1 . Repair Stations 8 | . . . . . 1 1 1 . . . . 3 . 1 . . . . . . . . 1 . . Recycling Units 2 | . . . . . . 1 1 . . . . . . . . . . . . . . . . . . Scanalyzers 5 | . . . . . 1 . . . . . . 2 . . . . . . 1 . . 1 . . . Garrison Access 6 | . . . . . 1 . 1 . . . . . . 1 . . . . 1 . . 1 . 1 . Total Hacks 382 | . 24 . 2 . 45 42 31 2 . . . 41 16 47 7 1 18 . 16 25 . 26 15 18 6 Successful 223 | . 13 . 2 . 26 29 16 2 . . . 26 7 24 7 1 18 . 9 13 . 12 10 7 1 Failed 158 | . 10 . . . 19 13 15 . . . . 15 9 23 . . . . 7 12 . 14 5 11 5 Catastrophic 32 | . 3 . . . . 1 5 . . . . 3 4 4 . . . . 1 3 . 2 . 4 2 Database Lockouts 1 | . 1 . . . . . . . . . . . . . . . . . . . . . . . . Manual 161 | . 22 . 1 . 21 26 13 . . . . 13 3 24 . . . . 5 9 . 16 3 5 . Terminals 247 | . 24 . . . 37 29 14 . . . . 19 16 30 . . . . 6 21 . 23 9 13 6 Fabricators 50 | . . . . . . . 13 . . . . 4 . 14 . . . . 7 4 . . 4 4 . Repair Stations 28 | . . . . . 2 9 1 . . . . 12 . 2 . . . . . . . . 2 . . Recycling Units 6 | . . . . . . 4 2 . . . . . . . . . . . . . . . . . . Scanalyzers 14 | . . . . . 5 . . . . . . 6 . . . . . . 1 . . 2 . . . Garrison Access 7 | . . . . . 1 . 1 . . . . . . 1 . . . . 2 . . 1 . 1 . Terminal Hacks 101 | . 6 . 2 . 9 12 3 2 . . . 5 7 8 7 1 18 . . 6 . 7 3 4 1 Record 22 | . . . 1 . . . . 1 . . . . . . 6 1 6 . . 3 . 3 1 . . Part Schematic 10 | . 2 . . . . . 2 . . . . . . 1 . . 4 . . . . 1 . . . Robot Analysis 8 | . 2 . . . . . . . . . . . 2 . . . 4 . . . . . . . . Prototype ID Bank 14 | . 1 . . . 5 1 . . . . . . 2 1 . . 4 . . . . . . . . Open Door 11 | . . . . . . 4 . 1 . . . 1 . . 1 . . . . 1 . . . 3 . Level Access Points 1 | . . . . . . . . . . . . . . . . . . . . . . 1 . . . Branch Access Points 4 | . . . . . 1 . 1 . . . . 1 . 1 . . . . . . . . . . . Terminal Index 5 | . . . . . . 1 . . . . . 1 . 1 . . . . . 1 . 1 . . . Fabricator Index 4 | . . . . . . . . . . . . 1 . . . . . . . . . 1 1 . 1 Garrison Index 1 | . . . . . . . . . . . . . . 1 . . . . . . . . . . . Unreport Threat 4 | . . . . . . . . . . . . . 1 1 . . . . . . . . 1 1 . Locate Traps 5 | . . . . . 1 2 . . . . . . 1 1 . . . . . . . . . . . Extermination Status 1 | . . . . . . . . . . . . . . 1 . . . . . . . . . . . Recall Reinforcements 2 | . . . . . 1 . . . . . . . 1 . . . . . . . . . . . . Registered Components 2 | . . . . . 1 . . . . . . 1 . . . . . . . . . . . . . Zone Layout 6 | . 1 . . . . 4 . . . . . . . . . . . . . 1 . . . . . Proto ID Catalog 1 | . . . 1 . . . . . . . . . . . . . . . . . . . . . . Fabricator Hacks 34 | . . . . . . . 10 . . . . 4 . 6 . . . . 6 2 . . 4 2 . Network Status 4 | . . . . . . . 1 . . . . . . 1 . . . . 1 . . . . 1 . Load Schematic 21 | . . . . . . . 6 . . . . 2 . 5 . . . . 3 2 . . 2 1 . Build 9 | . . . . . . . 3 . . . . 2 . . . . . . 2 . . . 2 . . Repair Station Hacks 22 | . . . . . 1 8 . . . . . 9 . 2 . . . . . . . . 2 . . Scan Component 13 | . . . . . 1 4 . . . . . 6 . 1 . . . . . . . . 1 . . Repair 9 | . . . . . . 4 . . . . . 3 . 1 . . . . . . . . 1 . . Recycling Unit Hacks 1 | . . . . . . 1 . . . . . . . . . . . . . . . . . . . Report Inventory 1 | . . . . . . 1 . . . . . . . . . . . . . . . . . . . Scanalyzer 12 | . . . . . 5 . . . . . . 4 . . . . . . 1 . . 2 . . . Insert Component 6 | . . . . . 2 . . . . . . 2 . . . . . . 1 . . 1 . . . Analyze 6 | . . . . . 3 . . . . . . 2 . . . . . . . . . 1 . . . Garrison Access Hacks 3 | . . . . . 1 . . . . . . . . 1 . . . . . . . 1 . . . Seal Access 3 | . . . . . 1 . . . . . . . . 1 . . . . . . . 1 . . . Unauthorized Hacks 50 | . 7 . . . 10 8 3 . . . . 4 . 7 . . . . 2 5 . 2 1 1 . Terminals 38 | . 7 . . . 10 6 . . . . . 4 . 3 . . . . 1 3 . 2 1 1 . Track 1 | . 1 . . . . . . . . . . . . . . . . . . . . . . . . Assimilate 10 | . 1 . . . 2 2 . . . . . 1 . 1 . . . . . 1 . . 1 1 . Botnet 20 | . 2 . . . 6 3 . . . . . 2 . 2 . . . . 1 2 . 2 . . . Detonate 2 | . 1 . . . 1 . . . . . . . . . . . . . . . . . . . . Disrupt 1 | . 1 . . . . . . . . . . . . . . . . . . . . . . . . Operators 4 | . 1 . . . 1 1 . . . . . 1 . . . . . . . . . . . . . Fabricators 10 | . . . . . . . 3 . . . . . . 4 . . . . 1 2 . . . . . Recompile 10 | . . . . . . . 3 . . . . . . 4 . . . . 1 2 . . . . . Repair Stations . | . . . . . . . . . . . . . . . . . . . . . . . . . . Recycling Units 2 | . . . . . . 2 . . . . . . . . . . . . . . . . . . . Recyclers 1 | . . . . . . 1 . . . . . . . . . . . . . . . . . . . Mask 1 | . . . . . . 1 . . . . . . . . . . . . . . . . . . . Scanalyzers . | . . . . . . . . . . . . . . . . . . . . . . . . . . Garrison Access . | . . . . . . . . . . . . . . . . . . . . . . . . . . Data Cores Recovered 4 | . 1 . . . . 1 . . . . . . 1 1 . . . . . . . . . . . Used 2 | . 1 . . . . . . . . . . . 1 . . . . . . . . . . . . Hacking Detections 98 | . 6 . . . 11 8 14 . . . . 11 5 14 . . . . 5 3 . 8 4 6 3 Full Trace Events 20 | . 1 . . . 2 . 3 . . . . 3 2 2 . . . . . . . 1 . 4 2 Feedback Events 2 | . . . . . . . . . . . . . 1 . . . . . . . . . . 1 . Corruption 1 | . . . . . . . . . . . . . 1 . . . . . . . . . . . . Hackware Fried 1 | . . . . . . . . . . . . . . . . . . . . . . . . 1 . Feedback Blocked . | . . . . . . . . . . . . . . . . . . . . . . . . . . Robot Schematics Acquired . | . . . . . . . . . . . . . . . . . . . . . . . . . . Robots Built . | . . . . . . . . . . . . . . . . . . . . . . . . . . Authchips . | . . . . . . . . . . . . . . . . . . . . . . . . . . Time . | . . . . . . . . . . . . . . . . . . . . . . . . . . Total Robot Build Rating . | . . . . . . . . . . . . . . . . . . . . . . . . . . Part Schematics Acquired 15 | . 2 . . . 2 . 2 . . . . 2 . 1 . . 4 . . . . 2 . . . Parts Built 8 | . . . . . . . 3 . . . . 2 . . . . . . 2 . . . 1 . . Authchips 7 | . . . . . . . 2 . . . . 1 . . . . . . 2 . . . 2 . . Time 564 | . . . . . . . 168 . . . . 56 . . . . . . 212 . . . 128 . . Total Part Build Rating 40 | . . . . . . . 12 . . . . 8 . . . . . . 12 . . . 8 . . Parts Repaired 9 | . . . . . . 4 . . . . . 3 . 1 . . . . . . . . 1 . . Time 412 | . . . . . . 158 . . . . . 212 . 14 . . . . . . . . 28 . . Parts Recycled . | . . . . . . . . . . . . . . . . . . . . . . . . . . Recycled Matter . | . . . . . . . . . . . . . . . . . . . . . . . . . . Retrieved Matter . | . . . . . . . . . . . . . . . . . . . . . . . . . . Retrieved Components . | . . . . . . . . . . . . . . . . . . . . . . . . . . Parts Scanalyzed 5 | . . . . . 2 . . . . . . 2 . . . . . . . . . 1 . . . Part Schematics Acquired 5 | . . . . . 2 . . . . . . 2 . . . . . . . . . 1 . . . Parts Damaged . | . . . . . . . . . . . . . . . . . . . . . . . . . . Bothacking | -11 -10 -10 -10 -9 -8 -8 -7 -7 -7 -7 -6 -6 -6 -5 -5 -5 -5 -4 -4 -4 -4 -3 -2 -1 -1 ------------ Run | Yrd Mat Min Exi Min Mat Sto Fac Low Low Zio Pro Fac Ext Fac Upp Upp Zhi Pro Fac Arm Lab Res Res Acc Com Used RIF Installer . | . . . . . . . . . . . . . . . . . . . . . . . . . . Robots Hacked 7 | . . . 7 . . . . . . . . . . . . . . . . . . . . . . Non-combat 3 | . . . 3 . . . . . . . . . . . . . . . . . . . . . . Combat 4 | . . . 4 . . . . . . . . . . . . . . . . . . . . . . Robot Hacks Applied 7 | . . . 7 . . . . . . . . . . . . . . . . . . . . . . parse_system 7 | . . . 7 . . . . . . . . . . . . . . . . . . . . . . Relay Couplers Released . | . . . . . . . . . . . . . . . . . . . . . . . . . . Fabnet Peak Effective % . | . . . . . . . . . . . . . . . . . . . . . . . . . . Robots Rewired 2 | . . . . . . . . . . . 2 . . . . . . . . . . . . . . Allies Hacked . | . . . . . . . . . . . . . . . . . . . . . . . . . . Hacks Repelled 1 | . . . . . . . . . . . . . . . . . . . 1 . . . . . . Allies | -11 -10 -10 -10 -9 -8 -8 -7 -7 -7 -7 -6 -6 -6 -5 -5 -5 -5 -4 -4 -4 -4 -3 -2 -1 -1 -------- Run | Yrd Mat Min Exi Min Mat Sto Fac Low Low Zio Pro Fac Ext Fac Upp Upp Zhi Pro Fac Arm Lab Res Res Acc Com Total Allies 33 | . . . . . 1 10 . . . 4 2 1 11 1 . . . . . 1 . . 1 1 . Largest Group 11 | . . . . . 1 10 9 . . 4 4 1 11 1 . . . . . 1 . . 1 1 . Highest-Rated Group 347 | . . . . . 10 173 157 . . 109 109 26 347 10 . . . . . 26 . . 45 45 . Highest-Rated Ally 45 | . . . . . 10 29 29 . . 39 39 26 39 10 . . . . . 26 . . 45 45 . Total Orders 28 | . . . . . 4 . . . . . 2 . . . 7 4 . 1 . 5 . 1 2 2 . STAY 5 | . . . . . 2 . . . . . 1 . . . 1 . . . . . . . . 1 . FOLLOW 4 | . . . . . 2 . . . . . 1 . . . . . . . . . . . . 1 . EXPLORE 5 | . . . . . . . . . . . . . . . 2 3 . . . . . . . . . RETURN 14 | . . . . . . . . . . . . . . . 4 1 . 1 . 5 . 1 2 . . Ally Attacks 259 | . . . . . . 49 45 . . . 48 . 117 . . . . . . . . . . . . Total Damage 4147 | . . . . . . 495 491 . . . 1119 . 2042 . . . . . . . . . . . . Kills 33 | . . . . . . 8 5 . . . 6 . 14 . . . . . . . . . . . . Allies Corrupted . | . . . . . . . . . . . . . . . . . . . . . . . . . . Allies Melted 2 | . . . . . . . . . . . 1 . 1 . . . . . . . . . . . . Intel | -11 -10 -10 -10 -9 -8 -8 -7 -7 -7 -7 -6 -6 -6 -5 -5 -5 -5 -4 -4 -4 -4 -3 -2 -1 -1 ------- Run | Yrd Mat Min Exi Min Mat Sto Fac Low Low Zio Pro Fac Ext Fac Upp Upp Zhi Pro Fac Arm Lab Res Res Acc Com Active Infowar (turns) 30927 | 2 1463 368 . . 2495 3395 2817 997 839 2049 1865 1724 1768 2502 691 927 342 595 1402 926 985 1289 1023 . 463 Optics 26765 | . . . . . 2495 3395 2817 997 839 2035 1865 1724 1768 2500 691 927 342 595 1402 926 984 . . . 463 Sensors 5889 | . . . . . . . 190 997 839 2040 1823 . . . . . . . . . . . . . . IFF 393 | . . . . . . . . . . . . . . 393 . . . . . . . . . . . Seismic 1833 | 2 1463 368 . . . . . . . . . . . . . . . . . . . . . . . Cloaking 1670 | . . . . . . . . . . . . . . . . . . . . 613 971 86 . . . Jamming 3962 | . . . . . . . 125 . . . . 1040 18 367 . . . . . . 102 1287 1023 . . ECM 2 | . . . . . . . . . . . . . . . 2 . . . . . . . . . . Robot Analysis Total 8 | . 2 . . . . . . . . . . . 2 . . . 4 . . . . . . . . Derelict Logs Recovered 13 | . . 2 . 2 . . . 1 1 2 1 . . . 1 1 . 2 . . . . . . . Drone Launches 36 | . . . . . . . . . . . . . . . 3 3 . 3 . 15 . 3 9 . . Drone Recoveries 31 | . . . . . . . . . . . . . . . 3 1 . 3 . 15 . 3 6 . . Exploration | -11 -10 -10 -10 -9 -8 -8 -7 -7 -7 -7 -6 -6 -6 -5 -5 -5 -5 -4 -4 -4 -4 -3 -2 -1 -1 ------------- Run | Yrd Mat Min Exi Min Mat Sto Fac Low Low Zio Pro Fac Ext Fac Upp Upp Zhi Pro Fac Arm Lab Res Res Acc Com Turns Passed 38322 | 146 1474 1283 1123 2153 3570 3395 2817 997 839 2049 1865 1724 1768 2543 691 927 342 595 1402 926 1014 1729 1524 598 828 Spaces Moved 19892 | 55 723 649 507 598 1402 1348 1720 677 545 1431 999 962 894 1247 339 407 223 367 766 498 478 831 690 942 594 Core 1155 | 4 . . . . . 1 . . . . . . . . . . . . . . . . 70 938 142 Treads 72 | . . . . . . . . . . . . . . . . . . . . . . . . 4 68 Legs 18281 | 51 723 649 507 598 1402 1347 1720 677 545 1431 999 962 894 1247 339 407 223 367 766 498 478 831 620 . . Wheels . | . . . . . . . . . . . . . . . . . . . . . . . . . . Hover 384 | . . . . . . . . . . . . . . . . . . . . . . . . . 384 Flight . | . . . . . . . . . . . . . . . . . . . . . . . . . . Fastest Speed 50 | 50 120 190 190 260 120 190 120 133 133 133 133 126 140 140 140 140 130 130 126 140 140 140 50 50 50 Average Speed 147 | 114 176 190 218 260 188 191 130 133 133 133 137 136 140 152 143 140 135 130 135 140 140 143 141 50 70 Slowest Speed 950 | 120 190 190 260 260 260 950 190 133 133 133 250 140 140 250 250 140 140 130 140 250 140 250 250 170 250 Overloaded Moves . | . . . . . . . . . . . . . . . . . . . . . . . . . . Propulsion Burnouts . | . . . . . . . . . . . . . . . . . . . . . . . . . . Robots Hopped . | . . . . . . . . . . . . . . . . . . . . . . . . . . Potential Cave-ins 7 | . . . . . . . . . 3 . . . . . . . . . . 2 . . 2 . . Cave-ins Triggered . | . . . . . . . . . . . . . . . . . . . . . . . . . . Teleports 2 | . . . . . . . . . . . . . . . . . . . . 1 . . 1 . . Exploration Rate (%) 61 | 5 98 98 90 98 85 91 37 77 71 85 88 23 85 43 70 75 64 61 20 41 95 28 18 27 21 Regions Visited 25 Branch Regions 16 Pre-discovered Areas 9 | . . 1 1 . . 1 . . . 2 . . . . . 1 3 . . . . . . . . Known Exits Taken 14 | . . . . . 1 . 1 1 1 1 1 1 1 1 . . . 1 . . 1 1 1 1 . Unknown Exits Taken 11 | 1 1 1 1 1 . 1 . . . . . . . . 1 1 1 . 1 1 . . . . . Scrap Searched 27 | . . 1 . 3 . . . 8 . 4 3 . . . 2 2 . 4 . . . . . . . Spaces Dug 284 | . 12 . . . 30 53 22 5 4 . 25 26 . 39 . 7 . 2 3 18 . 12 10 11 5 Terrain Destroyed 804 | . 25 . . 34 131 54 24 29 31 . 144 26 . 113 2 37 . 19 13 28 1 19 30 11 33 Melee 111 | . . . . . 4 39 22 . . . . 26 . . . . . . . . . . 6 11 3 Projectile 402 | . 16 . . . 15 1 2 29 28 . 46 . . 108 2 37 . 19 13 28 1 19 18 . 20 AOE 290 | . 9 . . 34 112 13 . . 3 . 98 . . 5 . . . . . . . . 6 . 10 Terrain Rammed . | . . . . . . . . . . . . . . . . . . . . . . . . . . Walls Destroyed . | . . . . . . . . . . . . . . . . . . . . . . . . . . Machines Disabled . | . . . . . . . . . . . . . . . . . . . . . . . . . . Actions | -11 -10 -10 -10 -9 -8 -8 -7 -7 -7 -7 -6 -6 -6 -5 -5 -5 -5 -4 -4 -4 -4 -3 -2 -1 -1 --------- Run | Yrd Mat Min Exi Min Mat Sto Fac Low Low Zio Pro Fac Ext Fac Upp Upp Zhi Pro Fac Arm Lab Res Res Acc Com Total 26870 | 93 833 681 518 1189 2051 1898 2112 730 603 1578 1352 1283 1324 1646 536 730 254 486 1121 678 791 1254 1168 1030 931 Wait 4351 | 1 4 9 . 575 389 315 189 . 9 117 220 245 378 183 179 242 . 83 219 81 247 227 277 36 126 Move 19867 | 54 722 648 506 597 1401 1347 1719 676 544 1430 998 961 893 1246 338 406 222 366 765 497 477 830 689 941 594 Hop . | . . . . . . . . . . . . . . . . . . . . . . . . . . Pick Up 195 | 5 22 . 1 1 29 22 23 3 . 4 3 5 . 11 5 1 5 3 6 7 7 13 8 3 8 Fast Attach 191 | 6 6 1 . . 17 19 11 . . 9 1 4 2 16 . 3 6 2 16 8 8 7 3 13 33 Attach 140 | 1 . . . 2 13 10 15 . . 1 1 4 . 5 1 3 3 3 7 2 3 17 34 2 13 Detach 63 | . 1 . . 2 2 2 1 . . . . 2 1 2 . 3 2 . 5 . 1 7 24 . 8 Swap 222 | . 21 7 3 6 29 11 20 4 2 3 12 16 11 16 5 5 2 . 3 16 . 21 3 . 6 Drop 329 | . 19 6 1 2 35 36 34 4 . 14 4 6 4 21 5 5 8 5 15 15 13 19 23 11 24 Fire 1236 | 26 38 10 . 4 122 48 52 43 48 . 98 12 28 145 3 62 . 24 85 52 35 112 97 5 87 Melee 262 | . . . 7 . 14 88 43 . . . 7 28 7 1 . . 6 . . . . 1 10 19 31 Ram . | . . . . . . . . . . . . . . . . . . . . . . . . . . Kick . | . . . . . . . . . . . . . . . . . . . . . . . . . . Crush . | . . . . . . . . . . . . . . . . . . . . . . . . . . Escape Stasis 6 | . . . . . . . 5 . . . . . . . . . . . . . . . . . 1 Rewire 8 | . . . . . . . . . . . 8 . . . . . . . . . . . . . . Trap . | . . . . . . . . . . . . . . . . . . . . . . . . . . Miscellaneous . | . . . . . . . . . . . . . . . . . . . . . . . . . . Route ------- -11/Scrapyard -10/Materials (discovered 6 exits: [*Mat x3] / [*Min x2] / [*Sub]) -10/Mines (discovered 3 exits: [*Mat x2] / *Exi) -10/Exiles -9/Mines (discovered 2 exits: *Mat x2) -8/Materials (discovered 2 exits: *Fac / *Sto) -8/Storage (discovered 2 exits: *Fac / [*Rec]) -7/Factory (discovered 3 exits: *Fac / *Low x2) -7/Lower Caves -7/Lower Caves (discovered 2 exits: *Fac / *Zio) -7/Zion -6/Proximity Caves -6/Factory (discovered 5 exits: Fac / Low x2 / *Ext x2) -6/Extension (discovered 3 exits: *Fac x2 / [*Cet]) -5/Factory (discovered 2 exits: *Upp x2) -5/Upper Caves -5/Upper Caves (discovered 2 exits: *Fac / *Zhi) -5/Zhirov -4/Proximity Caves -4/Factory (discovered 2 exits: Res / *Arm) -4/Armory -4/Lab -3/Research (discovered 3 exits: *Res x3) -2/Research (discovered 2 exits: *Acc x2) -1/Access -1/Command History --------- Turn | Location | Event 2 | -11/Scrapyard | Met Revision 17 3 | -11/Scrapyard | Discovered new exit (range 15) 147 | -11/Scrapyard | Entered Materials 148 | -10/Materials | Met a group of wandering Federalists 326 | -10/Materials | Build established: Mutant 398 | -10/Materials | Discovered new exit (range 12) 485 | -10/Materials | Discovered new exit (range 7) 678 | -10/Materials | Discovered new exit (range 16) 857 | -10/Materials | Central database locked down 1090 | -10/Materials | Discovered new exit (range 16) 1474 | -10/Materials | Discovered new exit (range 5) 1554 | -10/Materials | Discovered new exit (range 5) 1621 | -10/Materials | Entered Mines 1683 | -10/Mines | Met a Derelict bent on vengeance 1965 | -10/Mines | Found a Scrap Suit stashed away for nefarious purposes 2039 | -10/Mines | Discovered new exit (range 8) 2139 | -10/Mines | Learned location of Storage (-8) 2329 | -10/Mines | Deemed a non-threat by the Exiles lab entrance 2329 | -10/Mines | Discovered new exit (range 5) 2363 | -10/Mines | Learned Materials stockpile data 2499 | -10/Mines | Discovered new exit (range 11) 2904 | -10/Mines | Entered Exiles 2952 | -10/Exiles | Met 8R-AWN 2982 | -10/Exiles | Met EX-HEX 3038 | -10/Exiles | Met EX-BIN 3062 | -10/Exiles | Aligned with FarCom system 3064 | -10/Exiles | Given EX-Vault access code 3112 | -10/Exiles | Met EX-DEC 3188 | -10/Exiles | Visited The Gauntlet 3258 | -10/Exiles | Build established: Scavenger-Mutant 3412 | -10/Exiles | Learned location of Zion (-7) 3652 | -10/Exiles | Opened EX-Vault 3671 | -10/Exiles | Found XL Autogun Array 3724 | -10/Exiles | Warned to stay clear of 0b10 Research branches 3991 | -10/Exiles | Discovered new exit (range 14) 4027 | -10/Exiles | Left Exiles lab with XL Autogun Array 4027 | -10/Exiles | Entered Mines 4331 | -9/Mines | Build established: Mutant 4353 | -9/Mines | Assembled infested the area 5650 | -9/Mines | Received a Rocket Launcher from a helpful Derelict 5683 | -9/Mines | Learned Materials machine intel 5956 | -9/Mines | Discovered new exit (range 16) 6047 | -9/Mines | Learned Materials security intel 6070 | -9/Mines | Discovered new exit (range 14) 6180 | -9/Mines | Entered Materials 6180 | -8/Materials | Evolved 4 slots: Propulsion x2, Utility x2 6183 | -8/Materials | Loaded intel: 58 machine locations 7009 | -8/Materials | Discovered new exit (range 14) 7093 | -8/Materials | Lost 3 parts (1p1n1w) 7376 | -8/Materials | Build established: Scavenger-Mutant 7480 | -8/Materials | Discovered new exit (range 8) 8661 | -8/Materials | Core integrity fell below 50% 8838 | -8/Materials | Garrison activated, responded to threat 8963 | -8/Materials | Build established: Mutant 9025 | -8/Materials | Identified exit to Storage 9750 | -8/Materials | Entered Storage 9823 | -8/Storage | Repaired Carbon-fiber Leg 9862 | -8/Storage | Repaired Deuterium Engine 9902 | -8/Storage | Repaired Recoil Stabilizer 10119 | -8/Storage | Build established: Scavenger-Mutant 10163 | -8/Storage | Lost 4 parts (3n1w) 10724 | -8/Storage | Discovered new exit (range 12) 10931 | -8/Storage | Learned location of Armory (-4) 11222 | -8/Storage | Core integrity fell below 20% 12344 | -8/Storage | Assisted by bots powering up and referring to "LRC-V3" 12425 | -8/Storage | Discovered new exit (range 9) 12608 | -8/Storage | Met 01-MTF 12660 | -8/Storage | Build established: Commander-Mutant 12774 | -8/Storage | Repaired Greatsword 12954 | -8/Storage | Used back door to open Recycling access 13093 | -8/Storage | Allies destroyed 01-MTF 13145 | -8/Storage | Entered Factory 13145 | -7/Factory | Accompanied by 9 allies 13145 | -7/Factory | Evolved 2 slots: Propulsion x1, Utility x1 13386 | -7/Factory | Lost 7 allies 13647 | -7/Factory | Build established: Scavenger-Mutant 14030 | -7/Factory | P-60 Hacker assimilated allied Trooper 3a 14115 | -7/Factory | Identified exit to Lower Caves 14386 | -7/Factory | Discovered new exit (range 16) 14670 | -7/Factory | Build established: Mutant 15203 | -7/Factory | Fabricated Lgt. Armored Exoskeleton? 15248 | -7/Factory | Fabricated Lgt. Armored Exoskeleton (x1) 15300 | -7/Factory | Fabricated Lgt. Armored Exoskeleton? 15563 | -7/Factory | Garrison activated, responded to threat 15962 | -7/Factory | Entered Lower Caves 15967 | -7/Lower Caves | Entered a destroyed Warlord outpost 16070 | -7/Lower Caves | Build established: Skirmisher 16700 | -7/Lower Caves | Attracted the attention of an 0b10 checkpoint 16870 | -7/Lower Caves | Learned Factory trap positions 16903 | -7/Lower Caves | Discovered new exit (range 8) 16911 | -7/Lower Caves | Identified exit to Lower Caves 16959 | -7/Lower Caves | Entered another Lower Caves area 16963 | -7/Lower Caves | Discovered new exit (range 14) 17028 | -7/Lower Caves | Encountered a Warlord checkpoint 17467 | -7/Lower Caves | Learned Factory emergency access door positions 17483 | -7/Lower Caves | Spotted B-75 Beast 17711 | -7/Lower Caves | Discovered new exit (range 7) 17719 | -7/Lower Caves | Identified exit to Zion 17798 | -7/Lower Caves | Entered Zion 17843 | -7/Zion | System corruption cleaned by Quarantine Array 17979 | -7/Zion | Discovered new exit (range 19) 18116 | -7/Zion | Learned location of 1 exit from Factory 18203 | -7/Zion | Found CR-A16's Pointy Stick 18212 | -7/Zion | Learned Factory stockpile data 18650 | -7/Zion | Found Prototype Energy Gun 18698 | -7/Zion | Rebuked by Imprinter 18838 | -7/Zion | Gained Derelict followers 19012 | -7/Zion | Found Exp. Core Analyzer 19017 | -7/Zion | Found Prototype Processor 19017 | -7/Zion | Identified Exp. Target Analyzer 19022 | -7/Zion | Found Prototype Processor 19022 | -7/Zion | Identified Exp. Signal Interpreter 19026 | -7/Zion | Found Prototype Processor 19026 | -7/Zion | Identified Spectral Analyzer 19811 | -7/Zion | Identified exit to Proximity Caves 19847 | -7/Zion | Entered Proximity Caves 19847 | -6/Proximity Caves | Accompanied by 4 allies 19849 | -6/Proximity Caves | Attracted the attention of an 0b10 outpost 20070 | -6/Proximity Caves | Spotted B-75 Beast 20118 | -6/Proximity Caves | Destroyed B-75 Beast 20388 | -6/Proximity Caves | Learned 4 Factory zone layouts 21693 | -6/Proximity Caves | Discovered new exit (range 14) 21708 | -6/Proximity Caves | Identified exit to Factory 21712 | -6/Proximity Caves | Entered Factory 21712 | -6/Factory | Evolved 2 slots: Propulsion x1, Weapon x1 21713 | -6/Factory | Identified exit to Factory 21715 | -6/Factory | Loaded intel: 134 trap records 22010 | -6/Factory | Repaired Broken Mni. Fusion Reactor 22055 | -6/Factory | Repaired Lgt. Armored Exoskeleton 22101 | -6/Factory | Repaired Lgt. Armored Exoskeleton 22410 | -6/Factory | Fabricated Lgt. Armored Exoskeleton (x1) 22456 | -6/Factory | Identified exit to Lower Caves 22456 | -6/Factory | Identified exit to Extension 22515 | -6/Factory | Fabricated Lgt. Armored Exoskeleton (x1) 22955 | -6/Factory | Build established: Mutant 23436 | -6/Factory | Entered Extension 23712 | -6/Extension | Build established: Skirmisher 24029 | -6/Extension | Energy Cycler disabled 24029 | -6/Extension | Rescued a captive Derelict 24029 | -6/Extension | Rescued a captive Derelict 24029 | -6/Extension | Rescued a captive Derelict 24029 | -6/Extension | Rescued a captive Derelict 24029 | -6/Extension | Rescued a captive Derelict 24029 | -6/Extension | Rescued a captive Derelict 24029 | -6/Extension | Rescued a captive Derelict 24029 | -6/Extension | Rescued a captive Derelict 24029 | -6/Extension | Rescued a captive Derelict 24030 | -6/Extension | Rescued a captive Derelict 24030 | -6/Extension | Rescued a captive Derelict 24030 | -6/Extension | Rescued a captive Derelict 24030 | -6/Extension | Rescued a captive Derelict 24030 | -6/Extension | Rescued a captive Derelict 24031 | -6/Extension | Rescued a captive Derelict 24031 | -6/Extension | Rescued a captive Derelict 24033 | -6/Extension | Rescued a captive Derelict 24035 | -6/Extension | Rescued a captive Derelict 24053 | -6/Extension | Rescued a captive Derelict 24589 | -6/Extension | Spotted B-75 Beast 24619 | -6/Extension | Discovered exit to Factory (range 12) 24623 | -6/Extension | Revealed the true nature of CR-A16's Pointy Stick 24629 | -6/Extension | Destroyed B-75 Beast 24659 | -6/Extension | Lost 3 allies 24666 | -6/Extension | Extracted ID and sensor layout for unrecognized location from A7's data core 24891 | -6/Extension | Build established: Mutant 25011 | -6/Extension | Disrupted transfer network 25181 | -6/Extension | Discovered exit to Factory (range 10) 25183 | -6/Extension | Discovered new exit (range 6) 25204 | -6/Extension | Entered Factory 25204 | -5/Factory | Evolved 2 slots: Utility x1, Weapon x1 25224 | -5/Factory | Build established: Skirmisher 25560 | -5/Factory | Build established: Hacker-Skirmisher 25661 | -5/Factory | Identified exit to Upper Caves 25918 | -5/Factory | Spotted B-75 Beast 26103 | -5/Factory | Destroyed B-75 Beast 26629 | -5/Factory | Repaired Lgt. Armored Exoskeleton 26780 | -5/Factory | Build established: Skirmisher 26947 | -5/Factory | Garrison activated, responded to threat 27381 | -5/Factory | Cargo convoy interrupted 27747 | -5/Factory | Entered Upper Caves 27749 | -5/Upper Caves | Attracted the attention of an 0b10 checkpoint 27964 | -5/Upper Caves | Encountered a Warlord checkpoint 28023 | -5/Upper Caves | Learned Factory emergency access door positions 28042 | -5/Upper Caves | Build established: Gunner 28169 | -5/Upper Caves | Discovered new exit (range 14) 28284 | -5/Upper Caves | Entered an active Warlord outpost 28355 | -5/Upper Caves | Learned Research trap positions 28355 | -5/Upper Caves | Learned Armory stockpile data 28355 | -5/Upper Caves | Learned Extension garrison access intel 28355 | -5/Upper Caves | Learned Armory garrison access intel 28438 | -5/Upper Caves | Entered another Upper Caves area 28441 | -5/Upper Caves | Discovered new exit (range 14) 28499 | -5/Upper Caves | Found Alien Artifact 29334 | -5/Upper Caves | Discovered new exit (range 10) 29365 | -5/Upper Caves | Entered Zhirov 29365 | -5/Zhirov | Discovered new exit (range 3) 29391 | -5/Zhirov | Met Zhirov 29423 | -5/Zhirov | Learned location of Quarantine (-3) 29423 | -5/Zhirov | Learned location of Testing (-2) 29423 | -5/Zhirov | Learned location of Command (-1) 29446 | -5/Zhirov | Zhirov requested help retrieving the SGEMP Prototype 29472 | -5/Zhirov | Found Alien Artifact 29472 | -5/Zhirov | Identified Integrated Reactor 29472 | -5/Zhirov | Installed Integrated Reactor, increased core energy generation (+10) 29491 | -5/Zhirov | Found Alien Artifact 29498 | -5/Zhirov | Identified Storm Laser 29683 | -5/Zhirov | Build established: Mutant 29707 | -5/Zhirov | Entered Proximity Caves 29879 | -4/Proximity Caves | Identified exit to Factory 29928 | -4/Proximity Caves | Spotter reported a threat 29994 | -4/Proximity Caves | Build established: Gunner 30009 | -4/Proximity Caves | Learned Research stockpile data 30032 | -4/Proximity Caves | Spotter reported a threat 30302 | -4/Proximity Caves | Entered Factory 30302 | -4/Factory | Evolved 2 slots: Utility x2 30303 | -4/Factory | Identified exit to Research 30618 | -4/Factory | Build established: Hacker-Skirmisher 30665 | -4/Factory | Fabricated Med. Armored Exoskeleton (x1) 30774 | -4/Factory | Fabricated Med. Armored Exoskeleton (x1) 31394 | -4/Factory | Allied Derelicts emerged from ambush trap array 31498 | -4/Factory | Discovered new exit (range 15) 31544 | -4/Factory | Lost 3 allies 31552 | -4/Factory | First assault squad dispatched 31704 | -4/Factory | Entered Armory 31830 | -4/Armory | Found Prototype Hackware 31830 | -4/Armory | Identified Exp. System Shield 31848 | -4/Armory | Found Mni. Smartbomb Launcher 31932 | -4/Armory | Found Quantum Capacitor 32450 | -4/Armory | Identified Transdimensional Reconstructor 32450 | -4/Armory | Warped through subspace to slip node 32450 | -4/Armory | Discovered new exit (range 1) 32630 | -4/Armory | Entered Lab 32630 | -4/Lab | Discovered exit to Research (range 9) 32646 | -4/Lab | Hidden lab's door opened automatically 32646 | -4/Lab | Sensor layout match revealed 32647 | -4/Lab | Gained access to the hidden lab's interior 32761 | -4/Lab | Unable to decrypt terminal 32876 | -4/Lab | Found Alien Artifact 32876 | -4/Lab | Identified Core Expander 32876 | -4/Lab | Installed Core Expander, added new Propulsion slot 32917 | -4/Lab | Found Alien Artifact 32917 | -4/Lab | Identified Integrated Dissipator 32917 | -4/Lab | Installed Integrated Dissipator, increased core heat dissipation (+20) 32928 | -4/Lab | Found Transdimensional Reconstructor 32945 | -4/Lab | Build established: Hacker-Gunner 33093 | -4/Lab | Found Prototype Hackware 33093 | -4/Lab | Identified Deep Network Scanner 33433 | -4/Lab | Found Prototype Energy Cannon 33433 | -4/Lab | Identified Warp Cannon 33443 | -4/Lab | Found Prototype Energy Gun 33443 | -4/Lab | Identified Hyp. EM Gauss Rifle 33447 | -4/Lab | Found Prototype Protection 33601 | -4/Lab | Identified Hvy. Regenerative Plating 33644 | -4/Lab | Entered Research 33644 | -3/Research | Evolved 2 slots: Propulsion x1, Utility x1 33645 | -3/Research | Loaded intel: 75 trap records 33874 | -3/Research | Build established: Hacker-Skirmisher 34526 | -3/Research | Spotted B-86 Titan 34529 | -3/Research | Destroyed B-86 Titan 34678 | -3/Research | Found Imp. Powered Armor 35039 | -3/Research | Identified exit to Research 35160 | -3/Research | System corruption reached 10% 35238 | -3/Research | Destroyed 12 combat bots 35304 | -3/Research | Build established: Hacker-Mutant 35373 | -3/Research | Entered another Research area 35373 | -2/Research | Evolved 2 slots: Power x1, Utility x1 35565 | -2/Research | Warp Cannon suddenly broke down 35619 | -2/Research | Repaired Imp. Powered Armor 35872 | -2/Research | Fabricated Hvy. Armored Exoskeleton (x1) 35923 | -2/Research | Discovered new exit (range 19) 36031 | -2/Research | Build established: Hacker-Skirmisher 36287 | -2/Research | Discovered new exit (range 14) 36518 | -2/Research | Warped through subspace 36687 | -2/Research | System corruption reached 10% 36896 | -2/Research | Identified exit to Access 36897 | -2/Research | Entered Access 36897 | -1/Access | Evolved 2 slots: Power x1, Utility x1 36924 | -1/Access | Deep Network Scanner fried by hacking feedback 37305 | -1/Access | Spotted B-99 Colossus 37311 | -1/Access | Found Prototype Device 37311 | -1/Access | Identified Exp. Thermal Shield 37330 | -1/Access | Destroyed B-99 Colossus 37398 | -1/Access | Build established: Hacker-Mutant 37411 | -1/Access | Core integrity fell below 50% 37492 | -1/Access | Discovered new exit (range 7) 37495 | -1/Access | Identified exit to Command 37495 | -1/Access | Entered Command 37605 | -1/Command | Core integrity fell below 20% 37619 | -1/Command | Found Quantum Capacitor 37725 | -1/Command | Build established: Mutant 37750 | -1/Command | System corruption reached 10% 37892 | -1/Command | Spotted B-99 Colossus 37899 | -1/Command | Destroyed B-99 Colossus 37907 | -1/Command | Spotted Alpha 7 37942 | -1/Command | Spotted B-99 Colossus 38076 | -1/Command | Destroyed B-99 Colossus 38097 | -1/Command | Destroyed 8 combat bots 38107 | -1/Command | Lost 3 parts (1p1n1u) 38125 | -1/Command | Build established: Scavenger-Mutant 38245 | -1/Command | First assault squad dispatched 38285 | -1/Command | Found Hvy. Reflective Plating 38314 | -1/Command | Spotted Striker 38316 | -1/Command | Spotted Executioner 38316 | -1/Command | Spotted Executioner 38317 | -1/Command | Spotted B-99 Colossus 38322 | -1/Command | Destroyed Alpha 7 38323 | -1/Command | Destroyed by Executioner with Helical Railgun Last Messages --------------- 38317_ Penetrated by Slug. 38318_ Hvy. Shock Bomb intercepted. 38319_ Penetrated by Slug. 38319_ Slug penetrates Wall. 38319_ Penetrated by Slug. 38319_ K-01 Serf collects debris. 38320_ Stasis Trap short circuited. 38320_ A bubble of rippling energy engulfs the area. 38320_ Slug penetrates Terminal. 38320_ Slug penetrates Executioner. 38320_ Slug penetrates Striker. 38320_ Penetrated by Slug. 38320_ Hvy. Shock Bomb Launcher destroyed. 38320_ Penetrated by Slug. 38321_ Activated siege mode. 38322_ Alpha 7 suffers critical hit (Meltdown). 38322_ Exp. Targeting Computer melted. 38323_ Penetrated by Slug. 38323_ K-01 Serf collects debris. Map ----- +----------------------------------------------------+ | ?????????????????????????????????????????????????? | | ?????????????????????????????????????????????????? | | ?????????????????????????????????????????????????? | | ?????????????????????????????????????????????????? | | ?????????????????????????????????????????????????? | | ?????????????????????????????????????????????????? | | ?????????????????????????????????????????????????? | | ?????????????????????""??????????????????????????? | | ?????????????????? ??????????????????????????? | | ???????????????????BB ????BB????????????????????? | | ???????????????????BB ????BB????????????????????? | | ???????????????????# ?????????????????????????? | | ??????????????????? ??E??????????? ??????????? | | ???????????????????# ??????????????w ##???????? | | ??????????????????? E ??E?????????? ???????? | | ??????????????????## ????????????? C ??????? | | ??????????????????? ??K?????????? ???????? | | ??????????????????## E ???????????? ????????? | | ??????????????????? ?7????????? #????????? | | ???????????????????#^ ^ ??????????? #????????? | | ???????????????????# ??????????? #????????? | | ????????????????????#/K//#?????????? #????????? | | ????????????????????#=%% ##????????? #????????? | | ????????????????????# ! ;########## #????????? | | ????????????????????# """ #????????? | | ????????????????????# @ ""T"" #????????? | | ????????????????????# % % "" +????????? | | ????????????#######?# #????????? | | ????????????# ### #????????? | | ????????????# [[ ]= +????????? | | ????????????# ### =%! %=] ######????????? | | ????????????# #?# !!= [ % * #???????????? | | ????????????# ### !!=! #???????????? | | ????????????# #"#+#### =% #####?????????### | | ????????????# " # ;!;=###########??# | | ?###????????# # [ + # """T""" +???# | | ?# ???????# # # ; "" """ #???# | | ## ######## # ! " # % #???# | | / " " # #???# | | / %% # " ; #???# | | / %[* # "! ; ####### | | / %![ ######""[ = " + | | / ==| #### [=%k%!; """" ####### | | ## ##### =% ===%![ " """" ######? | | ???????# * ][%![%%# "" # | | ???????### ![ =%![= =" # | | ?????????#### %[!!!! % " # | | ???????????##] !=!! ###"#"######## | | ???????????#" % =!! ####""############## | | ???????????## === = # #?????? | +----------------------------------------------------+ Best States ------------- Heat Dissipation 148 Coolant Potential 200 Energy Generation 75 Energy Capacity 850 Matter Stores 700 Matter Capacity 700 Sight Range 24 Robot Scan Range 15 Terrain Scan Density 210 Jamming Range 16 Cloak Strength 4 Base Temperature (-) 100 Armor Coverage 1000 Resistance: TH 25 Core Shielding 30 Propulsion Shielding 90 Weapon Shielding 66 Evasion (%) 63 Core Analysis 8 Recoil Reduction 8 Particle Charging 30 Offensive Hacking 39 Defensive Hacking 16 Authchip Count 5 Item Schematics ----------------- Hcp. Storage Unit | -10/Materials | Hacked Huge Storage Unit | -10/Materials | Hacked Recoil Stabilizer | -8/Materials | Scanalyzed Cryofiber Web | -8/Materials | Scanalyzed Adv. Cooling System | -7/Factory | Hacked Lgt. Armored Exoskeleton | -7/Factory | Hacked Myomer Leg | -6/Factory | Scanalyzed Hrd. Heavy Armor Plating | -6/Factory | Scanalyzed Med. Armored Exoskeleton | -5/Factory | Hacked Assault Drone Bay | -5/Zhirov | Free Exp. Heat Sink | -5/Zhirov | Free Exp. Optical Array | -5/Zhirov | Free Imp. Arc Thrower | -5/Zhirov | Free Quantum Capacitor | -3/Research | Scanalyzed Hvy. Armored Exoskeleton | -3/Research | Hacked Robot Schematics ------------------ None Fabricated ------------ Lgt. Armored Exoskeleton | x1 | -7/Factory Lgt. Armored Exoskeleton | x1 | -7/Factory | Authchip Lgt. Armored Exoskeleton | x1 | -7/Factory | Authchip Lgt. Armored Exoskeleton | x1 | -6/Factory | Authchip Lgt. Armored Exoskeleton | x1 | -6/Factory Med. Armored Exoskeleton | x1 | -4/Factory | Authchip Med. Armored Exoskeleton | x1 | -4/Factory | Authchip Hvy. Armored Exoskeleton | x1 | -2/Research | Authchip Repaired ---------- Carbon-fiber Leg | 1% | -8/Storage Deuterium Engine | 17% | -8/Storage Recoil Stabilizer | 28% | -8/Storage Greatsword | 10% | -8/Storage Mni. Fusion Reactor | 9% | -6/Factory | Broken Lgt. Armored Exoskeleton | 27% | -6/Factory Lgt. Armored Exoskeleton | 35% | -6/Factory Lgt. Armored Exoskeleton | 33% | -5/Factory Imp. Powered Armor | 72% | -2/Research Alien Tech Used ----------------- Integrated Reactor Transdimensional Reconstructor Core Expander Integrated Dissipator Achievements -------------- None Challenges ------------ None Game ------ Seed SwarmLayeredScrap Manual? 0 Play Time 06:18:49 Cumulative 289.2 hours Start 2025.08.30 @ 15:05:07 End 2025.08.31 @ 11:30:25 Sessions 3 Manual Loads 0 Difficulty Rogue Special Mode None Game No. 196 Rogue 196 Adventurer 0 Explorer 0 Win Type - Total 3 Types 3/0/0/0/0/0/0/0/0/0 Lore% 73 Gallery% 74 Achievement% 60 Wizard Run 0 Options --------- Layout 1 ASCII 0 Keyboard 0 Movement Mouse Keybinds 0 Fullscreen 1 Font 32/SmallcapsGlow Map View 50x35 Zoom Use 0% Tactical HUD 1 Map Filters NONE Filters NONE Steam 1 RUN: d5ef0d74-930f-4214-b6a4-624aa88918b7